bitfinex/quotes_SOLUSD_20220210
["timestamp","ask_amount","ask_price","bid_price","bid_amount"]
[1644473277427,11.96078344,112.02,111.96,36.9643]
[1644473277624,11.96078344,112.02,111.94,12.46]
[1644473277825,11.98478344,112.02,111.94,12.46]
[1644473278028,44.449406,112.01,111.94,12.46]
[1644473278425,44.449406,112.01,111.95,36.76889934]
[1644473278826,48.012218,112.01,111.95,36.76889934]
[1644473279424,42.251409,112.01,111.95,36.76889934]
[1644473279624,38.031255,112.0,111.95,36.76889934]
[1644473279825,52.012258,112.01,111.95,36.76889934]
[1644473280127,23.831798,111.99,111.95,36.76889934]
[1644473280325,47.792104,112.0,111.95,36.76889934]
[1644473280529,23.831798,111.99,111.95,36.76889934]
[1644473280726,14.070949,111.98,111.95,36.76889934]
[1644473280927,44.67255084,112.01,111.95,36.76889934]
[1644473281127,52.716497,112.0,111.95,36.76889934]
[1644473281526,18.291103,112.01,111.95,36.76889934]
[1644473281928,14.062156,112.0,111.95,36.76889934]
[1644473282127,18.279673,112.02,111.95,36.76889934]
[1644473282430,36.18728032,112.01,111.95,36.76889934]
[1644473282729,16.039293,112.0,111.95,37.01889934]
[1644473282930,0.024,112.02,111.95,50.41959934]
[1644473283130,6.194654,112.01,111.95,50.41959934]
[1644473283328,0.024,112.02,111.95,50.41959934]
[1644473283528,6.194654,112.01,111.95,50.41959934]
[1644473283727,122.861458,112.03,111.95,50.41959934]
[1644473283927,46.1743596,112.02,111.95,50.41959934]
[1644473284127,6.194654,112.01,111.95,50.41959934]
[1644473285132,12.47176082,112.0,111.95,50.16959934]
[1644473285536,11.863885,111.99,111.95,50.16959934]
[1644473285738,0.024,112.03,111.95,50.41959934]
[1644473285935,52.011399,112.02,111.95,50.41959934]
[1644473286137,0.024,112.03,111.95,50.41959934]
[1644473286336,72.151258,112.02,111.95,50.16959934]
[1644473286537,43.00218862,112.01,111.95,50.16959934]
[1644473286936,0.024,112.02,111.95,50.16959934]
[1644473287139,11.864977,112.01,111.95,50.16959934]
[1644473287337,0.024,112.02,111.95,50.16959934]
[1644473287537,11.864977,112.01,111.95,50.16959934]
[1644473287741,24.95838093,112.04,111.95,50.41959934]
[1644473287941,123.26396294,112.02,111.95,50.16959934]
[1644473288141,46.27839394,112.02,111.95,50.16959934]
[1644473288348,16.699288,112.01,111.95,50.41959934]
[1644473290849,16.699288,112.01,111.95,62.87959934]
[1644473291742,11.864977,112.01,111.95,62.87959934]
[1644473291942,46.30239394,112.02,111.95,62.87959934]
[1644473292147,11.864977,112.01,111.95,62.62959934]
[1644473292346,11.864977,112.01,111.95,62.87959934]
[1644473292949,12.34372648,112.0,111.95,62.87959934]
[1644473293143,12.34372648,112.0,111.95,62.62959934]
[1644473293346,12.34372648,112.0,111.95,62.87959934]
[1644473293550,0.024,112.02,111.95,62.87959934]
[1644473293744,16.787184,112.01,111.95,62.87959934]
[1644473293945,77.097465,112.02,111.95,62.87959934]
[1644473294150,77.073465,112.02,111.95,62.87959934]
[1644473294346,16.787184,112.01,111.95,62.87959934]
[1644473294646,22.127099,112.02,111.95,62.87959934]
[1644473294851,0.024,112.03,111.97,13.3981]
[1644473295050,0.024,112.04,111.97,25.8581]
[1644473295247,119.796671,112.04,111.97,25.8581]
[1644473295455,119.796671,112.04,111.97,26.1081]
[1644473295651,161.81976375,112.03,111.97,70.27996439]
[1644473296150,39.23987,112.02,111.97,70.27996439]
[1644473296350,39.23987,112.02,111.97,70.02996439]
[1644473297655,53.30081,112.02,111.97,70.02996439]
[1644473299958,53.30081,112.02,111.97,25.8581]
[1644473300358,53.30081,112.02,111.97,12.46]
[1644473301059,19.12617767,112.01,111.97,12.46]
[1644473301465,23.292591,112.0,111.97,12.46]
[1644473301859,6.06439994,111.99,111.97,12.46]
[1644473302459,3.03219997,111.99,111.97,12.46]
[1644473302660,19.12617767,112.01,111.97,12.46]
[1644473303080,23.294655,112.0,111.97,12.46]
[1644473304481,6.06439994,111.99,111.97,12.46]
[1644473305281,6.06439994,111.99,111.95,37.3364]
[1644473305580,6.06439994,111.99,111.95,13.6509]
[1644473308287,45.56034269,111.99,111.95,13.6509]
[1644473311886,6.06439994,111.99,111.95,13.6509]
[1644473314989,26.85694212,111.99,111.95,13.6509]
[1644473315690,6.06439994,111.99,111.95,13.6509]
[1644473317394,21.46686102,111.99,111.95,13.6509]
[1644473317594,6.06439994,111.99,111.95,13.6509]
[1644473321097,23.70626892,111.99,111.95,13.4009]
[1644473321300,23.70626892,111.99,111.94,13.4023]
[1644473321498,23.70626892,111.99,111.93,23.904]
[1644473322301,23.70626892,111.99,111.93,64.60646188]
[1644473322700,23.70626892,111.99,111.93,78.00996188]
[1644473322901,23.70626892,111.99,111.93,78.25996188]
[1644473323301,23.70626892,111.99,111.93,78.00996188]
[1644473326303,23.70626892,111.99,111.93,64.60646188]
[1644473329730,6.06439994,111.99,111.93,64.60646188]
[1644473330830,49.93098064,111.99,111.93,64.60646188]
[1644473336936,49.93098064,111.99,111.93,23.904]
[1644473338142,51.19886157,111.99,111.93,23.904]
[1644473338345,51.19886157,111.99,111.91,13.4296]
[1644473338346,47.573603,111.98,111.91,13.4296]
[1644473338542,47.573603,111.98,111.91,0.024]
[1644473338543,1.26788093,111.97,111.91,0.024]
[1644473338744,49.12035,111.96,111.88,0.024]
[1644473338944,75.12923093,111.96,111.88,0.024]
[1644473339145,36.116226,111.95,111.88,0.024]
[1644473339351,14.75553972,111.94,111.88,0.024]
[1644473339542,11.865049,111.93,111.88,0.024]
[1644473339742,11.865049,111.93,111.86,40.08046402]
[1644473339942,20.219049,111.93,111.86,40.08046402]
[1644473340240,8.354,111.93,111.86,53.49186402]
[1644473340641,8.354,111.93,111.86,65.95186402]
[1644473341642,8.354,111.93,111.86,65.70186402]
[1644473341842,38.23933972,111.94,111.86,65.70186402]
[1644473342742,38.23933972,111.94,111.86,65.95186402]
[1644473346847,38.23933972,111.94,111.87,23.8406]
[1644473347046,38.23933972,111.94,111.87,23.8646]
[1644473347246,38.23933972,111.94,111.87,24.1146]
[1644473349047,23.4838,111.94,111.87,37.5252]
[1644473349950,65.02376491,111.94,111.87,37.5252]
[1644473352650,23.4838,111.94,111.87,37.5252]
[1644473353750,65.01237469,111.94,111.87,37.5252]
[1644473356658,23.4838,111.94,111.87,37.5252]
[1644473357656,23.4838,111.94,111.87,49.9852]
[1644473360162,46.46302205,111.95,111.87,49.9852]
[1644473364468,46.46302205,111.95,111.87,49.7352]
[1644473364668,47.73090298,111.95,111.87,0.024]
[1644473364870,1.26788093,111.94,111.86,0.024]
[1644473365069,24.55438093,111.94,111.87,0.024]
[1644473365268,24.55438093,111.94,111.84,37.2472]
[1644473365468,24.55438093,111.94,111.85,44.53013486]
[1644473365667,24.55438093,111.94,111.86,23.1749]
[1644473366869,24.55438093,111.94,111.86,36.5869]
[1644473367574,24.55438093,111.94,111.86,36.5629]
[1644473367872,24.55438093,111.94,111.86,49.0469]
[1644473368371,23.2865,111.94,111.86,51.04452228]
[1644473368572,23.2865,111.94,111.86,49.2969]
[1644473370494,24.55438093,111.94,111.86,49.2969]
[1644473370998,23.2865,111.94,111.86,49.2969]
[1644473373401,24.55438093,111.94,111.86,49.2969]
[1644473373604,23.2865,111.94,111.86,49.2969]
[1644473374105,24.55438093,111.94,111.86,49.2969]
[1644473375306,23.2865,111.94,111.86,49.2969]
[1644473377312,1.26788093,111.95,111.86,49.2969]
[1644473377513,25.54308093,111.96,111.89,13.407]
[1644473377711,24.2752,111.96,111.89,13.681]
[1644473378215,24.2752,111.96,111.9,12.46]
[1644473378413,29.70524,111.95,111.9,61.25172791]
[1644473378715,29.70524,111.95,111.9,61.50172791]
[1644473378914,29.70524,111.95,111.91,13.4058]
[1644473379915,24.2752,111.96,111.91,13.4058]
[1644473380114,11.846149,111.95,111.91,13.4058]
[1644473380314,11.846149,111.95,111.91,13.6558]
[1644473380516,11.846149,111.95,111.91,26.1158]
[1644473380914,27.124245,111.95,111.91,26.1158]
[1644473384219,27.124245,111.95,111.92,7.74762228]
[1644473384220,15.273847,111.95,111.92,7.74762228]
[1644473384420,15.273847,111.98,111.93,25.8617]
[1644473384618,1.26788093,112.01,111.94,23.3744]
[1644473384819,1.29188093,112.01,111.95,12.46]
[1644473385020,35.76593381,112.0,111.95,12.46]
[1644473385219,35.76593381,112.0,111.95,14.20762228]
[1644473385419,35.76593381,112.0,111.95,12.46]
[1644473385821,11.846165,111.99,111.95,12.46]
[1644473386422,11.846165,111.99,111.93,24.2462]
[1644473386621,191.115834,111.99,111.91,36.081]
[1644473386819,53.77198193,111.99,111.91,36.081]
[1644473387020,28.580301,111.98,111.91,36.331]
[1644473387422,28.580301,111.98,111.91,61.0702]
[1644473387821,52.202828,111.98,111.91,74.4756]
[1644473389325,58.130148,111.98,111.91,74.4756]
[1644473397336,30.147225,111.98,111.91,74.4756]
[1644473397536,29.620729,111.97,111.91,74.4756]
[1644473397737,30.147225,111.98,111.91,74.4756]
[1644473398942,14.131243,111.97,111.91,76.22307628]
[1644473399139,11.84935,111.96,111.91,76.22307628]
[1644473399340,12.375846,111.98,111.91,74.4756]
[1644473399539,11.84935,111.97,111.91,74.4756]
[1644473399739,12.375846,111.98,111.91,74.4756]
[1644473402142,23.9238,111.99,111.91,74.4756]
[1644473404266,21.57860621,111.99,111.91,74.4756]
[1644473409070,12.378108,111.98,111.91,74.4756]
[1644473412469,17.424846,111.98,111.91,74.4756]
[1644473412870,12.377013,111.98,111.91,74.4756]
[1644473413471,17.117587,111.98,111.91,74.4756]
[1644473414069,17.117587,111.98,111.91,26.1154]
[1644473414273,42.375181,111.98,111.91,26.1154]
[1644473414470,22.85618661,111.96,111.91,26.1154]
[1644473414671,11.852494,111.95,111.91,26.1154]
[1644473415272,11.852494,111.95,111.91,13.6554]
[1644473418874,36.127815,111.95,111.91,13.4054]
[1644473419074,36.127815,111.95,111.9,13.4072]
[1644473419277,22.85618661,111.96,111.9,13.4072]
[1644473420675,36.26378661,111.96,111.9,13.4072]
[1644473423082,36.26378661,111.96,111.89,13.4319]
[1644473423283,36.26378661,111.96,111.89,13.4079]
[1644473423482,36.26378661,111.96,111.89,13.4319]
[1644473427585,36.26378661,111.96,111.9,0.024]
[1644473427784,36.26378661,111.96,111.9,13.4306]
[1644473427988,36.26378661,111.96,111.9,13.4066]
[1644473428385,36.26378661,111.96,111.91,46.15615294]
[1644473428586,6.582569,111.95,111.91,46.18015294]
[1644473428786,6.582569,111.95,111.91,46.15615294]
[1644473428985,6.582569,111.95,111.9,13.4066]
[1644473429189,36.26378661,111.96,111.9,13.6566]
[1644473429385,13.4058,111.97,111.9,13.6566]
[1644473429588,13.4058,111.97,111.91,37.9187]
[1644473429785,20.755314,111.96,111.91,37.9187]
[1644473430187,24.265591,111.96,111.91,37.9187]
[1644473430386,24.265591,111.96,111.91,82.39160108]
[1644473430789,36.115953,111.96,111.91,37.9187]
[1644473430988,17.683022,111.96,111.91,37.9187]
[1644473431189,25.842109,111.97,111.91,50.6287]
[1644473431388,1.29188093,112.0,111.91,52.37617628]
[1644473431588,1.29188093,112.0,111.91,52.35217628]
[1644473431788,0.024,112.0,111.92,6.0]
[1644473431989,41.14486938,112.0,111.94,13.4003]
[1644473432192,41.12086938,112.0,111.94,37.0314]
[1644473432387,41.14486938,112.0,111.94,37.0314]
[1644473433289,41.14486938,112.0,111.94,49.4914]
[1644473439599,41.14486938,112.0,111.94,26.1103]
[1644473440698,54.54706938,112.0,111.94,26.1103]
[1644473444905,41.14486938,112.0,111.94,26.1103]
[1644473445302,0.024,112.0,111.94,26.1103]
[1644473445505,1.29188093,112.02,111.95,23.7639]
[1644473445706,0.024,112.02,111.97,13.397]
[1644473445906,1.26788093,112.04,111.97,25.857]
[1644473446108,1.26788093,112.04,111.97,27.86008365]
[1644473446303,0.024,112.04,111.98,48.30791775]
[1644473446507,40.60742271,112.05,111.99,24.9662]
[1644473446704,0.024,112.04,111.99,25.2162]
[1644473447508,39.63142271,112.05,111.99,25.2162]
[1644473447703,39.63142271,112.05,111.99,38.611]
[1644473447905,39.63142271,112.05,111.99,38.361]
[1644473448104,36.679089,112.04,111.97,14.21308365]
[1644473448303,1.26788093,112.04,111.95,36.5826]
[1644473448505,24.11538093,112.04,111.95,36.8326]
[1644473448703,24.11538093,112.04,111.95,36.5826]
[1644473449003,19.28257864,112.03,111.96,35.2581002]
[1644473449703,32.68227864,112.03,111.96,48.6576002]
[1644473449903,70.115666,112.02,111.96,48.6576002]
[1644473450107,20.55045957,112.03,111.96,48.6576002]
[1644473450506,20.55045957,112.03,111.96,13.3995]
[1644473450706,20.55045957,112.03,111.95,36.5826]
[1644473451505,36.67432427,112.01,111.95,83.22844733]
[1644473451712,36.67432427,112.01,111.95,96.87894733]
[1644473452507,13.3997,112.02,111.95,96.87894733]
[1644473453629,57.52324566,112.02,111.95,96.87894733]
[1644473456333,58.79112659,112.02,111.95,96.87894733]
[1644473461441,1.26788093,112.01,111.95,96.87894733]
[1644473462742,1.29188093,112.01,111.95,96.87894733]
[1644473462953,0.024,112.01,111.95,98.62128021]
[1644473463143,58.79112659,112.02,111.95,98.62128021]
[1644473464345,14.66758093,112.02,111.95,98.62128021]
[1644473465345,45.48796365,112.01,111.95,51.97543288]
[1644473465550,58.91226365,112.01,111.95,51.97543288]
[1644473465745,14.615746,112.0,111.95,49.9831]
[1644473465944,14.615746,112.0,111.95,36.5826]
[1644473466144,14.615746,112.0,111.94,13.4018]
[1644473466344,0.024,112.0,111.94,13.4018]
[1644473466546,46.75584458,112.01,111.94,13.4018]
[1644473466747,12.15815677,111.99,111.94,13.4018]
[1644473466945,11.852522,111.98,111.94,13.4018]
[1644473467145,11.852522,111.98,111.93,13.403]
[1644473467346,13.4260377,111.99,111.93,13.403]
[1644473467746,26.8533377,111.99,111.92,23.4354]
[1644473467946,37.87955027,111.97,111.92,23.4354]
[1644473468154,53.51144193,111.98,111.92,23.4354]
[1644473468346,40.391039,111.97,111.92,23.4354]
[1644473468745,45.221138,111.97,111.92,23.4354]
[1644473468946,58.627338,111.97,111.92,23.4354]
[1644473469246,16.684739,111.96,111.92,23.4354]
[1644473470849,91.964267,111.96,111.92,23.4354]
[1644473471052,33.243933,111.96,111.92,23.4354]
[1644473471249,21.388361,111.95,111.92,23.4354]
[1644473471450,33.243933,111.96,111.91,13.4056]
[1644473471672,21.388361,111.95,111.91,13.4056]
[1644473471850,13.4062,111.97,111.91,13.4056]
[1644473472052,11.855572,111.96,111.91,13.6556]
[1644473472251,13.4035,111.98,111.91,26.1156]
[1644473472450,11.855572,111.97,111.91,27.85793288]
[1644473472650,11.855572,111.96,111.93,13.4024]
[1644473472853,11.855572,111.99,111.93,54.28631697]
[1644473473052,25.257972,111.99,111.93,54.53631697]
[1644473473256,11.855572,111.98,111.93,54.53631697]
[1644473473453,68.74609743,112.0,111.93,66.99631697]
[1644473474053,23.4307,112.0,111.93,66.99631697]
[1644473474256,0.024,112.0,111.93,68.73864985]
[1644473477456,0.024,112.0,111.94,24.4934]
[1644473477757,53.88985175,112.01,111.95,55.75885336]
[1644473477958,0.024,112.0,111.95,55.75885336]
[1644473478157,53.88985175,112.01,111.95,56.00885336]
[1644473478659,11.854543,112.0,111.94,13.4018]
[1644473478860,25.280643,112.0,111.92,12.46]
[1644473479059,38.30368093,112.0,111.91,25.44643288]
[1644473479278,37.0358,112.0,111.91,25.44643288]
[1644473479679,17.18026867,111.99,111.92,39.13360361]
[1644473479879,30.58326867,111.99,111.93,13.4028]
[1644473480082,11.85666,111.98,111.93,13.4028]
[1644473480380,16.863252,111.98,111.93,13.4028]
[1644473481479,16.863252,111.98,111.94,37.90884265]
[1644473481681,30.267052,111.98,111.94,37.90884265]
[1644473481879,5.006592,111.97,111.94,37.90884265]
[1644473482681,3.03219997,111.96,111.93,13.4028]
[1644473484084,3.03219997,111.95,111.93,13.4028]
[1644473484286,3.03219997,111.96,111.93,13.4028]
[1644473485085,3.03219997,111.96,111.92,13.4042]
[1644473485286,3.03219997,111.96,111.91,23.7041]
[1644473485885,3.03219997,111.96,111.91,36.1641]
[1644473486484,3.03219997,111.96,111.91,49.5694]
[1644473486687,3.03219997,111.96,111.92,45.03107956]
[1644473488690,3.03219997,111.96,111.92,58.43487956]
[1644473489089,1.29188093,111.99,111.92,58.43487956]
[1644473489287,1.29188093,111.99,111.93,23.6766]
[1644473489489,0.024,111.99,111.94,12.46]
[1644473489688,23.6097,112.0,111.94,14.45233288]
[1644473489889,23.6337,112.0,111.94,14.45233288]
[1644473490087,23.6337,112.0,111.95,44.82388275]
[1644473490289,23.6097,112.0,111.97,36.60723329]
[1644473490500,0.024,112.01,111.97,36.60723329]
[1644473490690,14.66698093,112.02,111.97,36.60723329]
[1644473492691,1.26788093,112.02,111.97,50.00563329]
[1644473492892,1.29188093,112.03,111.97,62.71563329]
[1644473493794,0.024,112.03,111.97,62.71563329]
[1644473493992,49.42038093,112.04,111.97,62.71563329]
[1644473493993,0.024,112.04,111.97,62.71563329]
[1644473494195,0.024,112.04,111.99,13.3926]
[1644473494393,1.26788093,112.06,112.0,12.46]
[1644473494594,1.26788093,112.06,112.0,44.37923288]
[1644473494796,1.29188093,112.07,112.0,44.62923288]
[1644473494997,1.29188093,112.07,112.01,41.95980655]
[1644473495196,1.29188093,112.07,112.01,54.66980655]
[1644473495397,1.29188093,112.07,112.01,54.41980655]
[1644473495695,1.26788093,112.06,112.01,67.81120655]
[1644473495895,1.29188093,112.07,112.01,67.81120655]
[1644473496096,1.26788093,112.07,112.01,67.81120655]
[1644473496699,1.26788093,112.07,112.01,68.06120655]
[1644473496900,39.23398093,112.08,112.01,68.06120655]
[1644473497398,39.23398093,112.08,112.01,67.81120655]
[1644473497599,25.84098093,112.08,112.01,68.06120655]
[1644473497998,25.84098093,112.08,112.01,67.81120655]
[1644473498802,8.91508881,112.07,112.01,67.81120655]
[1644473499001,8.91508881,112.07,112.01,12.46]
[1644473499202,22.30978881,112.07,112.01,12.46]
[1644473499403,23.57766974,112.07,112.01,12.46]
[1644473499903,23.57766974,112.07,111.98,64.54526551]
[1644473499904,46.22025819,112.05,111.98,64.54526551]
[1644473500103,46.22025819,112.05,111.98,37.568]
[1644473500305,46.24425819,112.05,111.98,37.568]
[1644473501003,46.24425819,112.05,111.98,73.65282508]
[1644473501604,47.51213912,112.05,111.98,73.65282508]
[1644473501804,60.88523912,112.05,111.98,73.65282508]
[1644473502004,60.88523912,112.05,111.98,49.48162508]
[1644473502206,33.509268,112.04,111.98,36.08482508]
[1644473502405,33.533268,112.04,111.98,36.08482508]
[1644473502605,33.509268,112.03,111.98,36.08482508]
[1644473503506,33.07633923,112.03,111.98,36.08482508]
[1644473503706,9.793804,112.02,111.98,36.08482508]
[1644473503909,9.793804,112.02,111.98,49.48152508]
[1644473504107,9.793804,112.02,111.98,13.3967]
[1644473504508,37.903137,112.02,111.97,33.8941]
[1644473504709,7.616,112.02,111.97,10.257]
[1644473505114,40.87691432,112.01,111.97,10.257]
[1644473505708,13.401,112.01,111.97,10.257]
[1644473505912,0.024,112.02,111.97,10.257]
[1644473506108,1.26788093,112.03,111.97,10.257]
[1644473506308,1.26788093,112.05,111.97,10.257]
[1644473506511,1.29188093,112.04,111.97,10.257]
[1644473506708,45.2240567,112.04,111.97,57.68631524]
[1644473507109,43.95617577,112.04,111.97,10.257]
[1644473507309,45.2480567,112.04,111.97,10.257]
[1644473507512,45.2240567,112.04,111.97,10.257]
[1644473507710,13.3985,112.03,111.97,10.257]
[1644473507909,13.4225,112.03,111.97,10.257]
[1644473508109,13.68994465,112.02,111.97,10.257]
[1644473509310,13.68994465,112.02,111.97,46.1317543]
[1644473509712,13.4225,112.03,111.97,46.1317543]
[1644473510212,13.4225,112.03,111.97,59.7796543]
[1644473510413,13.4213,112.04,111.97,61.27759646]
[1644473510612,0.024,112.04,111.97,61.27759646]
[1644473510812,34.71766823,112.04,111.97,59.5296543]
[1644473511216,34.71766823,112.04,111.97,59.7796543]
[1644473511618,0.024,112.04,111.97,59.7796543]
[1644473512220,0.024,112.04,111.97,72.2396543]
[1644473516146,0.024,112.04,111.97,71.9896543]
[1644473516147,13.4211,112.04,111.97,71.9896543]
[1644473516347,13.53270503,112.03,111.97,61.7326543]
[1644473516547,13.55670503,112.03,111.97,61.7326543]
[1644473518648,14.82458596,112.03,111.97,61.7326543]
[1644473519851,14.82458596,112.03,111.97,49.2726543]
[1644473520052,28.22278596,112.03,111.97,49.2726543]
[1644473520254,28.19878596,112.03,111.97,35.8747543]
[1644473520451,1.26788093,112.02,111.97,35.8747543]
[1644473520652,28.19878596,112.03,111.97,35.8747543]
[1644473520853,1.26788093,112.02,111.97,35.8747543]
[1644473521754,14.66728093,112.02,111.97,35.8747543]
[1644473522856,13.3994,112.02,111.97,35.8747543]
[1644473523258,14.66728093,112.02,111.96,36.476]
[1644473523459,14.69128093,112.02,111.96,36.476]
[1644473524263,14.69128093,112.02,111.96,72.06880855]
[1644473526562,13.4234,112.02,111.96,72.31880855]
[1644473527564,14.69128093,112.02,111.96,72.31880855]
[1644473528968,14.66728093,112.02,111.96,72.31880855]
[1644473529671,14.66728093,112.02,111.96,72.06880855]
[1644473530068,14.69128093,112.02,111.96,72.06880855]
[1644473531468,1.26788093,112.01,111.96,72.06880855]
[1644473531668,14.66798093,112.01,111.96,72.06880855]
[1644473532274,23.82438093,112.02,111.96,72.06880855]
[1644473532569,23.80038093,112.02,111.96,72.06880855]
[1644473533770,37.19958093,112.02,111.96,72.06880855]
[1644473534373,1.26788093,112.01,111.96,72.06880855]
[1644473534572,37.19958093,112.02,111.96,72.06880855]
[1644473534972,55.361244,112.02,111.96,72.06880855]
[1644473540902,1.26788093,112.01,111.96,72.06880855]
[1644473541200,14.66818093,112.01,111.96,36.476]
[1644473542707,39.48445735,112.0,111.96,13.3993]
[1644473542904,39.48445735,112.0,111.95,13.4011]
[1644473543104,52.88585735,112.0,111.95,13.6511]
[1644473544603,13.4014,112.0,111.95,13.6511]
[1644473544903,14.69198093,112.01,111.95,13.6511]
[1644473545806,14.69198093,112.01,111.96,34.49406737]
[1644473546007,1.29188093,112.01,111.96,84.94606737]
[1644473546306,1.26788093,112.02,111.96,86.94400953]
[1644473546607,1.29188093,112.03,111.96,96.52600953]
[1644473546806,1.26788093,112.03,111.96,96.52600953]
[1644473547207,1.29188093,112.03,111.96,96.52600953]
[1644473547815,0.024,112.03,111.96,96.52600953]
[1644473549812,0.024,112.03,111.96,86.94400953]
[1644473555224,14.01797232,112.03,111.96,86.94400953]
[1644473556421,0.024,112.03,111.96,86.94400953]
[1644473557723,0.024,112.03,111.96,52.19994216]
[1644473557925,0.024,112.03,111.96,25.8601]
[1644473558125,1.29188093,112.03,111.95,13.4004]
[1644473558324,1.26788093,112.01,111.93,25.46224216]
[1644473558525,1.26788093,112.01,111.93,23.7143]
[1644473558725,18.54273124,112.0,111.93,23.7143]
[1644473558925,19.81061217,112.0,111.93,0.024]
[1644473559126,34.32531834,111.97,111.92,0.024]
[1644473559427,34.32531834,111.97,111.91,82.26171835]
[1644473560725,47.73001834,111.97,111.91,82.26171835]
[1644473561527,47.73001834,111.97,111.91,37.7203]
[1644473563431,47.73001834,111.97,111.91,24.3162]
[1644473563633,13.839907,111.96,111.91,0.024]
[1644473564030,13.4081,111.95,111.91,0.024]
[1644473564232,13.4081,111.95,111.89,22.8643]
[1644473564432,23.32080208,111.94,111.89,22.8643]
[1644473564632,23.32080208,111.94,111.89,22.8403]
[1644473565733,36.72910208,111.94,111.89,22.8403]
[1644473566145,36.72910208,111.94,111.88,24.2976]
[1644473568335,36.72910208,111.94,111.88,0.024]
[1644473568539,36.72910208,111.94,111.86,0.024]
[1644473569135,23.7751,111.93,111.86,0.024]
[1644473569435,13.4122,111.91,111.86,0.024]
[1644473572341,23.32080208,111.9,111.86,0.024]
[1644473573256,23.32080208,111.9,111.84,60.5231]
[1644473573659,31.21380208,111.9,111.84,60.5231]
[1644473574361,44.62690208,111.9,111.84,60.5471]
[1644473575361,44.62690208,111.9,111.84,0.024]
[1644473575763,54.488585,111.89,111.77,22.5209]
[1644473575961,13.4204,111.86,111.77,22.5209]
[1644473576159,13.4204,111.86,111.77,34.9809]
[1644473576560,34.32531834,111.85,111.78,43.09851392]
[1644473577163,13.4216,111.84,111.78,43.09851392]
[1644473577362,13.4216,111.84,111.73,2.461429]
[1644473577565,36.0757,111.84,111.73,2.461429]
[1644473577762,36.0757,111.84,111.73,14.921429]
[1644473578163,36.0757,111.84,111.73,28.345229]
[1644473578362,36.0757,111.84,111.74,39.954371]
[1644473578564,13.4263,111.81,111.74,41.69791286]
[1644473578763,48.39640834,111.8,111.74,41.69791286]
[1644473578967,48.39640834,111.8,111.74,39.954371]
[1644473579164,34.32531834,111.8,111.74,39.954371]
[1644473579366,34.32531834,111.8,111.73,2.461429]
[1644473579764,13.4281,111.79,111.73,2.461429]
[1644473579967,24.1063023,111.79,111.73,2.9e-05]
[1644473580167,46.7595,111.78,111.73,2.9e-05]
[1644473580767,49.0107023,111.78,111.73,2.9e-05]
[1644473580967,46.7595,111.78,111.73,2.9e-05]
[1644473581866,13.4312,111.77,111.73,2.9e-05]
[1644473586272,25.8912,111.77,111.73,2.9e-05]
[1644473588273,28.1424023,111.77,111.73,2.9e-05]
[1644473588671,25.8912,111.77,111.73,2.9e-05]
[1644473590276,37.3012,111.77,111.73,2.9e-05]
[1644473590479,11.853439,111.76,111.73,2.9e-05]
[1644473590677,31.96179994,111.75,111.73,2.9e-05]
[1644473591274,56.72559994,111.75,111.73,2.9e-05]
[1644473591677,19.50179994,111.75,111.73,2.9e-05]
[1644473591878,6.06439994,111.75,111.73,2.9e-05]
[1644473592275,3.03219997,111.75,111.73,2.9e-05]
[1644473593274,3.03219997,111.74,111.73,2.9e-05]
[1644473605791,23.89358093,111.82,111.73,12.460029]
[1644473605989,1.26788093,111.83,111.73,12.460029]
[1644473606193,1.26788093,111.83,111.74,0.024]
[1644473606390,38.40536724,111.82,111.74,12.484]
[1644473606590,13.4257,111.81,111.75,0.024]
[1644473607616,14.69358093,111.81,111.75,0.024]
[1644473609113,14.69358093,111.81,111.73,0.024029]
[1644473609915,14.69358093,111.81,111.73,38.28819504]
[1644473610119,14.69358093,111.81,111.74,0.024]
[1644473617422,13.4289,111.79,111.74,0.024]
[1644473618323,19.24075318,111.78,111.74,0.024]
[1644473618525,13.4289,111.77,111.74,0.024]
[1644473618724,13.4289,111.77,111.73,38.26419504]
[1644473619023,13.4289,111.77,111.73,2.9e-05]
[1644473619923,13.4332,111.75,111.73,2.9e-05]
[1644473620124,6.06439994,111.74,111.73,2.9e-05]